bitfinex/quotes_SOLUSD_20240614
["timestamp","ask_amount","ask_price","bid_price","bid_amount"]
[1718331363922,21.2307,147.87,147.79,0.17]
[1718331364508,21.2307,147.87,147.79,0.34]
[1718331365118,21.2307,147.87,147.76,15.7178]
[1718331365422,21.2307,147.87,147.77,0.34]
[1718331366230,0.17,147.86,147.73,6.2735]
[1718331366436,18.47,147.85,147.73,6.2735]
[1718331366608,0.17,147.84,147.73,8.778]
[1718331366813,0.34,147.84,147.73,8.778]
[1718331367121,0.34,147.84,147.72,15.5293]
[1718331367435,20.34,147.84,147.73,2.5045]
[1718331367615,0.17,147.86,147.75,2.5041]
[1718331367819,20.17,147.86,147.76,2.5039]
[1718331368013,20.0,147.86,147.76,2.5039]
[1718331368315,20.0,147.86,147.77,2.5038]
[1718331368516,20.0,147.86,147.77,0.17]
[1718331370415,20.0,147.86,147.77,2.8438]
[1718331370646,21.2307,147.87,147.79,0.17]
[1718331370809,0.8404735,147.89,147.79,0.34]
[1718331371015,0.8404735,147.89,147.81,0.17]
[1718331372540,0.8404735,147.89,147.81,0.34]
[1718331372731,0.8404735,147.89,147.83,0.17]
[1718331373444,0.8404735,147.89,147.83,0.34]
[1718331373613,0.8404735,147.89,147.85,0.17]
[1718331373820,0.8404735,147.89,147.87,2.6721]
[1718331374145,0.8404735,147.89,147.88,0.51]
[1718331374718,0.8404735,147.89,147.83,6.3775]
[1718331374918,0.8404735,147.89,147.84,0.34]
[1718331375151,0.8404735,147.89,147.86,0.17]
[1718331375356,0.8404735,147.89,147.86,0.34]
[1718331375566,0.8404735,147.89,147.87,0.17]
[1718331375723,0.8404735,147.89,147.86,0.34]
[1718331375918,0.8404735,147.89,147.83,6.3775]
[1718331376362,0.8404735,147.89,147.82,15.1584]
[1718331378845,23.7892735,147.89,147.75,8.9522]
[1718331379046,23.7892735,147.89,147.76,2.504]
[1718331379259,20.0,147.88,147.75,6.4481]
[1718331379460,0.17,147.86,147.73,2.5045]
[1718331379768,0.17,147.86,147.71,15.5764661]
[1718331379769,0.51,147.86,147.72,2.5046]
[1718331379938,0.17,147.85,147.71,8.835]
[1718331380125,18.47,147.84,147.71,6.3302]
[1718331380327,0.34,147.83,147.71,8.8351]
[1718331380628,100.34,147.83,147.71,6.3302]
[1718331380870,20.0,147.82,147.71,6.3302]
[1718331381160,20.17,147.82,147.71,6.3302]
[1718331381334,6.3213,147.81,147.7,16.4071]
[1718331381536,20.0,147.8,147.69,2.5052]
[1718331381733,20.0,147.8,147.67,15.8985661]
[1718331382056,0.17,147.79,147.64,5.0121]
[1718331382223,0.34,147.79,147.66,2.5056]
[1718331382429,15.0534,147.78,147.66,2.5056]
[1718331382956,20.0,147.77,147.66,2.5056]
[1718331383132,20.0,147.77,147.63,31.3744661]
[1718331383336,20.0,147.77,147.67,2.5055]
[1718331384543,20.0,147.77,147.68,0.51]
[1718331384747,20.0,147.77,147.68,3.0153]
[1718331385171,20.0,147.77,147.68,0.51]
[1718331387062,20.0,147.77,147.69,0.17]
[1718331387355,15.0534,147.78,147.69,2.845]
[1718331387546,15.0534,147.78,147.7,0.34]
[1718331388764,6.3213,147.81,147.72,2.6746]
[1718331388943,6.3213,147.81,147.73,0.34]
[1718331389662,6.3213,147.81,147.73,0.17]
[1718331389868,6.3213,147.81,147.72,0.34]
[1718331390074,6.3213,147.81,147.67,2.5055]
[1718331390262,6.3213,147.81,147.69,2.5052]
[1718331390263,20.0,147.8,147.69,2.5052]
[1718331390748,20.0,147.8,147.68,2.5053]
[1718331391375,20.0,147.8,147.69,0.17]
[1718331391561,20.0,147.8,147.69,0.68]
[1718331392360,20.0,147.8,147.69,3.1852]
[1718331392671,20.0,147.8,147.69,0.68]
[1718331392873,20.0,147.8,147.73,0.17]
[1718331393073,20.0,147.8,147.73,3.1845]
[1718331393260,20.0,147.8,147.75,0.17]
[1718331393464,6.3213,147.81,147.75,0.17]
[1718331393861,6.3213,147.81,147.75,2.6742]
[1718331394083,6.3213,147.81,147.76,0.34]
[1718331394866,6.3213,147.81,147.76,0.17]
[1718331395056,6.3213,147.81,147.75,0.34]
[1718331395265,6.2517,147.85,147.76,0.17]
[1718331395454,6.2517,147.85,147.77,2.6737]
[1718331395651,6.2517,147.85,147.79,0.17]
[1718331395852,6.2517,147.85,147.79,1.52287149]
[1718331396076,6.2517,147.85,147.8,0.17]
[1718331396283,6.9620735,147.89,147.81,0.17]
[1718331396471,6.9620735,147.89,147.81,0.34]
[1718331396683,6.9620735,147.89,147.82,0.17]
[1718331396850,6.9620735,147.89,147.78,16.3048]
[1718331397050,6.9620735,147.89,147.79,0.34]
[1718331397569,20.0,147.88,147.79,0.34]
[1718331397779,20.0,147.88,147.81,0.17]
[1718331397989,20.0,147.88,147.81,0.34]
[1718331398785,6.9620735,147.89,147.81,0.34]
[1718331398993,20.0,147.88,147.76,2.504]
[1718331399167,20.0,147.88,147.77,0.68]
[1718331400002,20.0,147.88,147.77,0.17]
[1718331400204,0.34,147.87,147.74,15.8028]
[1718331400490,100.17,147.87,147.74,15.8028]
[1718331400985,20.17,147.86,147.74,15.8028]
[1718331401485,20.0,147.86,147.76,2.5039]
[1718331401784,0.34,147.88,147.77,0.51]
[1718331401983,0.17,147.87,147.77,0.51]
[1718331402604,0.17,147.87,147.77,3.0138]
[1718331402893,20.0,147.88,147.79,0.17]
[1718331403187,20.0,147.88,147.79,0.34]
[1718331403601,20.0,147.88,147.77,0.17]
[1718331403795,0.17,147.87,147.74,15.8028]
[1718331403973,0.51,147.87,147.74,15.8028]
[1718331404178,0.17,147.86,147.74,18.3071]
[1718331404486,20.0,147.86,147.75,2.5041]
[1718331404807,0.17,147.87,147.75,2.504]
[1718331404970,0.51,147.88,147.76,2.504]
[1718331405170,0.17,147.87,147.77,0.51]
[1718331407490,45.17,147.87,147.75,0.34]
[1718331407693,0.17,147.86,147.75,0.17]
[1718331407880,0.51,147.86,147.75,0.51]
[1718331408070,0.17,147.85,147.75,0.17]
[1718331408266,0.17,147.85,147.74,18.3071]
[1718331408479,0.17,147.85,147.75,2.6742]
[1718331408769,0.17,147.87,147.75,0.17]
[1718331409085,39.15,147.87,147.75,0.17]
[1718331409271,39.15,147.87,147.76,0.17]
[1718331409470,39.15,147.87,147.76,0.34]
[1718331411021,39.15,147.87,147.76,2.8439]
[1718331411171,38.81,147.87,147.77,2.5038]
[1718331411373,20.0,147.87,147.78,2.5036]
[1718331411674,20.0,147.86,147.79,2.8434]
[1718331411874,6.9620735,147.89,147.79,0.34]
[1718331412103,20.0,147.88,147.79,0.34]
[1718331415502,20.0,147.88,147.77,0.17]
[1718331415686,20.0,147.88,147.78,0.17]
[1718331416010,20.0,147.88,147.78,0.34]
[1718331420506,100.17,147.87,147.74,18.3071]
[1718331420807,0.34,147.86,147.75,3.1842]
[1718331420980,0.34,147.86,147.76,2.504]
[1718331421579,0.34,147.86,147.75,3.1841]
[1718331422385,20.0,147.88,147.75,0.68]
[1718331422699,0.17,147.87,147.77,2.5038]
[1718331424708,0.34,147.87,147.75,0.68]
[1718331425011,0.34,147.87,147.75,3.1841]
[1718331425187,0.34,147.87,147.76,2.504]
[1718331425386,0.34,147.87,147.77,0.17]
[1718331426107,0.17,147.87,147.77,2.8438]
[1718331426308,0.17,147.87,147.77,0.17]
[1718331426604,0.34,147.87,147.77,0.34]
[1718331427376,0.17,147.87,147.77,2.8438]
[1718331429105,38.47,147.88,147.78,2.5036]
[1718331429322,38.47,147.88,147.79,0.34]
[1718331429607,38.47,147.88,147.77,0.34]
[1718331429807,38.47,147.88,147.78,0.34]
[1718331433021,6.9620735,147.89,147.81,0.17]
[1718331433182,6.9620735,147.89,147.81,0.51]
[1718331433501,6.9620735,147.89,147.81,0.34]
[1718331433712,6.9620735,147.89,147.82,0.17]
[1718331434017,6.9620735,147.89,147.82,0.34]
[1718331435187,0.8404735,147.89,147.82,2.8429]
[1718331435516,20.8404735,147.89,147.82,0.34]
[1718331436513,20.8404735,147.89,147.8,0.17]
[1718331436711,20.8404735,147.89,147.8,0.51]
[1718331437692,20.8404735,147.89,147.8,3.0133]
[1718331438517,0.8404735,147.89,147.85,2.5024]
[1718331438690,0.8404735,147.89,147.86,0.17]
[1718331438884,0.8404735,147.89,147.86,0.34]
[1718331439100,0.8404735,147.89,147.87,0.17]
[1718331439325,0.8404735,147.89,147.87,0.34]
[1718331441515,22.6538,147.99,147.9,2.5015]
[1718331441727,22.6538,147.99,147.89,0.17]
[1718331441908,22.6538,147.99,147.89,0.34]
[1718331442217,22.6538,147.99,147.9,0.34]
[1718331442418,22.6538,147.99,147.91,0.17]
[1718331442719,22.6538,147.99,147.9,0.17]
[1718331443107,22.6538,147.99,147.91,0.17]
[1718331443312,18.47,148.01,147.91,3.0114]
[1718331443500,20.0,148.0,147.92,0.17]
[1718331443701,20.0,148.0,147.91,0.51]
[1718331443901,22.4261,148.02,147.91,0.51]
[1718331444095,20.0,148.01,147.91,0.51]
[1718331445109,0.17,148.0,147.88,21.7555]
[1718331445410,0.17,148.0,147.89,0.17]
[1718331445616,20.0,148.01,147.89,3.1818]
[1718331445809,20.0,148.01,147.91,2.5015]
[1718331446010,20.0,148.01,147.92,0.34]
[1718331446718,20.0,148.01,147.88,24.2573]
[1718331447333,0.17,148.0,147.88,24.2573]
[1718331447507,0.17,148.0,147.89,2.5017]
[1718331447820,38.47,148.01,147.89,2.5017]
[1718331448021,38.47,148.01,147.91,0.17]
[1718331448530,0.17,148.0,147.9,0.51]
[1718331448827,0.17,148.0,147.9,3.0116]
[1718331449729,0.17,148.0,147.9,0.51]
[1718331450140,38.47,148.01,147.91,0.17]
[1718331451526,38.47,148.01,147.91,2.6714]
[1718331451730,20.0,148.01,147.92,0.34]
[1718331451902,20.0,148.01,147.91,0.17]
[1718331451903,20.0,148.01,147.91,2.6714]
[1718331452229,20.0,148.01,147.92,0.34]
[1718331453653,20.0,148.01,147.92,0.17]
[1718331453924,20.0,148.01,147.91,0.34]
[1718331454132,0.17,148.0,147.91,0.17]
[1718331454438,0.17,148.0,147.88,21.7555]
[1718331454637,0.68,148.0,147.89,0.51]
[1718331454947,0.68,148.0,147.89,9.1618]
[1718331455122,6.15,147.95,147.89,9.1618]
[1718331455310,6.15,147.96,147.9,6.15]
[1718331456945,6.15,147.96,147.89,0.51]
[1718331457154,6.15,147.93,147.88,21.7555]
[1718331458147,24.6,147.98,147.88,21.7555]
[1718331458347,6.15,147.94,147.88,27.9055]
[1718331458530,24.6,147.98,147.89,0.34]
[1718331458724,6.15,147.94,147.89,0.34]
[1718331459336,0.68,148.0,147.89,0.34]
[1718331459658,6.15,147.95,147.89,8.9918]
[1718331460332,6.15,147.95,147.89,6.49]
[1718331461551,6.15,147.95,147.89,8.9918]
[1718331461760,6.15,147.96,147.9,0.17]
[1718331462066,6.15,147.96,147.9,6.32]
[1718331462238,6.15,147.96,147.91,0.17]
[1718331462824,6.15,147.96,147.9,0.34]
[1718331464057,6.15,147.95,147.9,0.34]
[1718331464257,6.15,147.95,147.88,21.7555]
[1718331464458,6.15,147.94,147.88,27.9055]
[1718331464764,0.34,148.0,147.89,0.17]
[1718331465057,6.15,147.95,147.89,6.66]
[1718331465259,6.15,147.98,147.89,6.66]
[1718331465425,24.6,147.98,147.89,6.66]
[1718331465624,20.0,147.97,147.89,6.66]
[1718331465853,6.15,147.95,147.89,9.1618]
[1718331466451,6.15,147.95,147.89,6.66]
[1718331467161,0.17,148.0,147.9,6.15]
[1718331467455,6.15,147.96,147.9,6.15]
[1718331467637,6.15,147.95,147.89,6.66]
[1718331468253,20.0,148.01,147.9,6.15]
[1718331468436,20.0,148.01,147.91,3.1815]
[1718331468760,20.0,148.01,147.93,0.17]
[1718331468761,6.15,147.98,147.93,0.17]
[1718331468926,6.15,147.98,147.93,0.34]
[1718331469128,6.15,147.98,147.93,0.17]
[1718331469550,6.15,147.98,147.92,6.49]
[1718331470870,6.15,147.97,147.92,0.34]
[1718331472644,6.15,147.96,147.92,0.17]
[1718331472966,6.15,147.96,147.91,0.34]
[1718331475160,6.15,147.96,147.9,0.34]
[1718331475467,6.15,147.95,147.89,6.66]
[1718331476134,6.15,147.95,147.89,9.1618]
[1718331476764,6.15,147.94,147.89,0.34]
[1718331477066,6.15,147.95,147.89,8.9918]
[1718331480251,6.15,147.95,147.89,0.34]
[1718331480565,6.15,147.95,147.89,6.49]
[1718331480771,6.15,147.94,147.89,0.34]
[1718331481647,6.15,147.95,147.89,6.49]
[1718331481976,6.15,147.96,147.9,0.17]
[1718331482143,20.0,148.01,147.92,6.15]
[1718331482350,6.17666146,148.04,147.92,8.6513]
[1718331482555,20.0,148.03,147.93,0.34]
[1718331482871,6.15,147.99,147.93,0.34]
[1718331484045,0.8404735,148.04,147.95,0.17]
[1718331484358,0.8404735,148.04,147.98,6.32]
[1718331484556,6.9904735,148.04,147.98,6.32]
[1718331485338,0.8404735,148.04,147.98,6.32]
[1718331485542,0.8404735,148.04,148.0,16.411]
[1718331486255,6.9904735,148.04,148.0,16.411]
[1718331486641,6.15,148.03,148.0,16.411]
[1718331487242,0.8404735,148.04,148.0,16.411]
[1718331487446,6.15,148.03,148.0,16.411]
[1718331487651,0.8404735,148.04,148.0,16.411]
[1718331487859,6.9904735,148.04,148.0,16.411]
[1718331489774,0.8404735,148.04,148.01,0.17]
[1718331489977,0.8404735,148.04,148.01,6.675]
[1718331490182,0.8404735,148.04,148.03,8.8194]
[1718331490474,248.3,148.14,148.06,0.17]
[1718331490652,6.15,148.15,148.09,6.15]
[1718331490855,6.6549,148.18,148.09,6.15]
[1718331491053,6.15,148.15,148.09,6.15]
[1718331491248,25.4404735,148.19,148.09,6.15]
[1718331491572,6.15,148.15,148.09,6.15]
[1718331492148,6.15,148.15,148.09,0.17]
[1718331492470,100.0,148.17,148.05,15.4958]
[1718331492678,6.15,148.09,148.05,15.4958]
[1718331492843,34.4287,148.14,148.05,15.4958]
[1718331493042,20.0,148.13,148.05,15.4958]
[1718331493546,0.17,148.12,148.05,15.4958]
[1718331493879,20.0,148.13,148.05,15.4958]
[1718331494241,0.17,148.12,148.05,15.4958]
[1718331495448,18.4,148.11,148.01,23.2267]
[1718331495667,0.34,148.1,148.01,23.2267]
[1718331496052,0.17,148.09,148.01,23.2267]
[1718331496472,18.57,148.08,148.01,16.6548]
[1718331496674,20.0,148.07,147.98,15.5969]
[1718331496971,18.4,148.05,147.98,15.5969]
[1718331497167,0.17,148.04,147.98,15.5969]
[1718331497365,0.34,148.04,147.97,6.2454]
[1718331497681,18.4,148.09,147.97,6.2454]
[1718331497979,40.1695,148.11,148.01,16.3712]
[1718331498576,140.1695,148.11,148.01,16.3712]
[1718331499174,20.0,148.1,148.01,16.3712]
[1718331499350,18.4,148.12,148.02,2.6695]
[1718331499556,254.7401,148.14,148.04,0.17]
[1718331499856,24.8401,148.14,148.04,0.17]
[1718331501083,24.8401,148.14,148.03,6.2309]
[1718331501445,0.51,148.13,148.03,6.2309]
[1718331501651,0.17,148.12,148.03,6.2309]
[1718331501874,20.0,148.13,148.04,0.34]
[1718331502056,20.0,148.13,148.04,3.1792]
[1718331502653,20.0,148.13,148.04,0.68]
[1718331502970,20.0,148.13,148.03,6.2309]
[1718331503466,0.17,148.12,148.03,6.2309]
[1718331504973,0.34,148.12,148.03,6.2309]
[1718331505279,0.34,148.11,148.03,6.2309]
[1718331505779,20.0,148.13,148.03,8.7303]
[1718331505984,0.17,148.12,148.03,8.7303]
[1718331506164,0.17,148.12,148.03,6.2309]
[1718331507252,0.34,148.12,148.03,6.2309]
[1718331507451,118.57,148.11,148.01,16.3712]
[1718331507673,0.51,148.1,148.01,16.3712]
[1718331507874,18.4,148.08,148.01,16.3712]
[1718331508482,20.17,148.07,148.01,16.3712]
[1718331509184,20.0,148.07,148.01,16.3712]
[1718331509570,20.0,148.06,148.01,16.3712]
[1718331509987,20.17,148.08,148.01,16.3712]
[1718331510296,20.0,148.08,148.01,16.3712]
[1718331511018,34.3215,148.12,148.01,18.871]
[1718331511180,20.68,148.11,148.01,16.3712]
[1718331511676,120.68,148.11,148.01,16.3712]
[1718331513120,45.0,148.1,148.01,16.3712]
[1718331513395,0.17,148.09,148.01,16.3712]
[1718331513603,20.68,148.09,148.01,16.3712]
[1718331515094,20.0,148.09,148.01,16.3712]
[1718331516976,18.4,148.1,148.01,16.3712]
[1718331518513,20.0,148.09,148.01,16.3712]
[1718331520679,18.4,148.07,148.01,16.3712]
[1718331522499,38.4,148.09,148.01,16.3712]
[1718331524283,20.0,148.09,148.01,16.3712]
[1718331524501,20.0,148.08,148.01,16.3712]
[1718331524805,18.4,148.1,148.01,16.3712]
[1718331525020,20.0,148.09,148.01,16.3712]
[1718331531694,20.0,148.09,148.02,0.17]
[1718331531883,18.4,148.14,148.02,0.68]
[1718331532408,18.4,148.14,148.01,16.3712]
[1718331532908,16.1196,148.15,148.01,22.5012]
[1718331532909,6.13,148.08,148.01,22.5012]
[1718331533288,0.17,148.11,148.01,16.3712]
[1718331533494,6.13,148.05,148.01,16.3712]
[1718331534702,6.13,148.06,148.01,16.3712]
[1718331535086,6.13,148.05,148.01,16.3712]
[1718331535687,6.13,148.04,148.01,16.3712]
[1718331536918,6.13,148.05,148.01,16.3712]
[1718331538099,100.68,148.11,148.01,16.3712]
[1718331538301,6.13,148.05,148.01,16.3712]
[1718331540913,0.68,148.11,148.01,16.3712]
[1718331540914,6.13,148.03,148.01,16.3712]
[1718331541512,6.13,148.02,148.01,16.3712]
[1718331542807,0.17,148.08,148.01,16.3712]
[1718331543016,0.17,148.06,148.01,16.3712]
[1718331543196,18.42,148.09,148.01,16.3712]
[1718331543745,20.0,148.08,148.01,16.3712]
[1718331547021,0.34,148.07,148.01,16.3712]
[1718331547203,0.17,148.07,148.01,16.3712]
[1718331547406,20.0,148.08,148.01,16.3712]
[1718331548521,0.17,148.07,148.01,16.3712]
[1718331548739,18.42,148.06,148.01,16.3712]
[1718331549030,18.42,148.06,147.9,25.9249]
[1718331549031,0.17,148.04,147.97,22.1872]
[1718331549234,0.17,148.02,147.93,22.1872]
[1718331549400,18.42,148.0,147.93,22.1872]
[1718331549604,20.0,147.99,147.93,22.1872]
[1718331551400,18.42,148.0,147.93,22.1872]
[1718331551730,18.42,148.03,147.93,22.1872]
[1718331552030,20.17,148.02,147.93,22.1872]
[1718331552198,0.34,148.01,147.93,22.1872]
[1718331552403,0.17,148.0,147.93,22.1872]
[1718331552641,0.34,148.0,147.93,22.1872]
[1718331553003,0.34,147.99,147.93,22.1872]
[1718331553706,38.59,148.0,147.93,22.1872]
[1718331554115,38.42,148.0,147.93,22.1872]
[1718331555042,20.0,148.0,147.93,22.1872]
[1718331555233,18.42,148.02,147.93,24.6883]
[1718331555402,38.42,148.05,147.97,2.5004]
[1718331555604,6.2698,148.1,147.98,15.6052]
[1718331555803,6.2698,148.1,147.99,6.3631]
[1718331555804,18.42,148.08,147.99,6.3631]
[1718331556230,118.42,148.08,147.99,6.3631]
[1718331556732,6.2698,148.1,147.99,6.3631]
[1718331556733,106.2698,148.1,147.99,6.3631]
[1718331557024,18.42,148.06,147.99,6.3631]
[1718331557229,0.17,148.05,147.99,6.3631]
[1718331557425,0.17,148.05,147.98,15.6052]
[1718331557426,18.42,148.03,147.98,15.6052]
[1718331557805,20.0,148.02,147.98,15.6052]
[1718331560421,0.33333333,148.01,147.98,15.6052]
[1718331561124,0.33333333,148.01,147.95,6.1773]
[1718331584873,6.14,147.97,147.95,6.1773]
[1718331585265,0.33333333,147.96,147.95,6.1773]
[1718331587675,0.33333333,147.96,147.94,16.4695]
[1718331587676,6.47333333,147.96,147.91,6.6659]
[1718331587856,6.14,147.93,147.91,6.6659]
[1718331588053,6.14,147.92,147.91,6.6659]
[1718331588257,6.47333333,147.92,147.91,6.6659]
[1718331588453,12.61333333,147.92,147.87,6.3395]
[1718331588760,6.14,147.88,147.87,6.3395]
[1718331589063,18.46,147.91,147.86,15.23]
[1718331589265,0.33333333,147.88,147.86,15.23]
[1718331590968,0.33333333,147.88,147.83,6.2145]
[1718331593587,20.33333333,147.88,147.83,6.2145]
[1718331595099,20.33333333,147.88,147.82,15.3147]
[1718331595391,0.17,147.87,147.82,15.3147]
[1718331595592,0.68,147.87,147.82,15.3147]
[1718331595767,0.33333333,147.86,147.82,15.3147]
[1718331596714,0.33333333,147.86,147.8,6.0133]
[1718331602690,0.33333333,147.86,147.82,2.503]
[1718331602999,0.33333333,147.86,147.81,2.5031]
[1718331603384,0.33333333,147.86,147.8,6.0133]
[1718331605115,0.33333333,147.86,147.82,2.5029]
[1718331605433,0.33333333,147.86,147.85,2.6725]
[1718331605593,34.5907,147.97,147.86,5.0047]
[1718331605793,18.46,147.99,147.89,0.17]
[1718331606111,18.46,148.02,147.91,0.17]
[1718331606312,18.46,148.02,147.91,3.0114]
[1718331606624,248.3,148.03,147.91,3.0114]
[1718331606828,22.1378,148.04,147.91,3.0114]
[1718331607030,22.1378,148.04,147.92,6.1004]
[1718331607231,22.1378,148.04,147.93,0.17]
[1718331607403,56.56972057,148.06,147.94,2.5008]
[1718331607605,18.46,148.06,147.96,0.17]
[1718331609025,20.0,148.05,147.96,0.17]
[1718331610432,18.46,148.06,147.96,0.17]
[1718331610727,24.4671,148.12,148.0,0.17]
[1718331610940,5.50473495,148.14,148.01,2.4998]
[1718331611230,18.46,148.13,148.02,0.34]
[1718331611449,100.0,148.12,148.0,0.51]
[1718331611612,18.46,148.13,148.0,0.51]
[1718331611613,18.46,148.13,148.01,0.17]
[1718331611818,18.46,148.13,148.01,0.51]
[1718331612036,20.0,148.12,148.01,0.51]
[1718331613020,0.34,148.11,148.01,0.51]
[1718331615847,0.34,148.11,147.99,6.1004]
[1718331616049,0.17,148.09,147.99,6.1004]
[1718331616258,18.46,148.1,148.0,0.51]
[1718331616761,20.0,148.09,148.0,0.51]
[1718331617130,20.0,148.09,148.0,0.17]
[1718331617330,20.0,148.09,147.99,6.1004]
[1718331617723,0.17,148.08,147.99,6.1004]
[1718331619273,18.46,148.07,147.99,6.1004]
[1718331619473,0.17,148.06,147.97,15.2929]
[1718331619698,20.0,148.06,147.97,15.2929]
[1718331620044,0.68,148.05,147.97,15.2929]
[1718331620436,0.34,148.05,147.97,15.2929]
[1718331620677,0.17,148.05,147.97,15.2929]
[1718331622351,20.0,148.06,147.98,0.17]
[1718331622551,20.17,148.09,147.98,3.0102]
[1718331622860,0.51,148.08,147.98,0.51]
[1718331624164,0.51,148.08,147.97,15.2929]
[1718331624345,18.46,148.05,147.97,15.2929]
[1718331624550,20.17,148.04,147.97,15.2929]
[1718331629555,0.51,148.03,147.97,15.2929]
[1718331629957,0.17,148.02,147.97,15.2929]
[1718331630981,20.0,148.04,147.97,15.2929]
[1718331633183,18.46,148.08,147.98,0.17]
[1718331633384,18.46,148.08,147.98,0.34]
[1718331633769,100.0,148.07,147.97,15.2929]
[1718331633994,18.46,148.08,147.97,15.2929]
[1718331634305,0.17,148.07,147.97,15.2929]
[1718331634513,20.68,148.07,147.97,15.2929]
[1718331634680,0.17,148.04,147.97,15.2929]
[1718331635075,0.68,148.04,147.97,15.2929]
[1718331635693,20.68,148.04,147.97,15.2929]
[1718331635992,20.34,148.04,147.97,15.2929]
[1718331636295,0.17,148.03,147.97,15.2929]
[1718331636502,0.34,148.03,147.97,15.2929]
[1718331636678,0.51,148.03,147.97,15.2929]
[1718331640214,0.34,148.03,147.97,15.2929]
[1718331640416,0.17,148.03,147.97,15.2929]
[1718331640983,0.51,148.03,147.97,15.2929]
[1718331641915,0.17,148.02,147.97,15.2929]
[1718331642125,0.51,148.02,147.97,15.2929]
[1718331643498,20.51,148.02,147.97,15.2929]
[1718331644095,20.0,148.01,147.97,15.2929]
[1718331644409,0.51,148.02,147.97,15.2929]
[1718331646799,20.0,148.04,147.97,15.2929]
[1718331654846,0.17,148.03,147.97,15.2929]
[1718331655018,0.68,148.03,147.97,15.2929]
[1718331655543,20.0,148.04,147.97,15.2929]
[1718331656730,18.46,148.02,147.97,15.2929]
[1718331657048,6.14,147.98,147.97,15.2929]
[1718331659326,0.17,148.01,147.97,15.2929]
[1718331659633,6.14,147.98,147.97,15.2929]
[1718331662320,6.14,147.98,147.95,6.1446]
[1718331662520,6.14,147.96,147.95,6.1446]
[1718331662940,6.14,147.96,147.94,15.6538]
[1718331663142,6.14,147.98,147.94,15.6538]
[1718331663354,6.14,147.95,147.94,15.6538]
[1718331667255,20.0,147.97,147.94,15.6538]
[1718331669073,20.0,147.97,147.91,6.1049]
[1718331669275,0.17,147.96,147.91,6.1049]
[1718331669463,0.34,147.96,147.91,6.1049]
[1718331670150,6.14,147.93,147.91,6.1049]
[1718331671376,6.14,147.94,147.91,6.1049]
[1718331672570,6.14,147.93,147.91,6.1049]
[1718331672766,6.14,147.92,147.91,6.1049]
[1718331673685,20.0,147.97,147.91,6.1049]